[Event "IMSA Blitz Men 2019"]
[Site "Hengshui"]
[Date "2019.05.17"]
[Round "3.1"]
[White "Yu, Yangyi"]
[Black "Cheparinov, Ivan"]
[Result "1-0"]
[ECO "B12"]
[WhiteElo "2739"]
[BlackElo "2667"]
[Annotator "RC"]
[PlyCount "91"]
[EventDate "2019.05.17"]
[EventType "blitz"]
[EventCountry "CHN"]
[SourceTitle "playchess.com"]
[Source "ChessBase"]
[SourceQuality "1"]
[TimeControl "180+2"]

1. e4 {[%emt 0:00:00]} c6 {[%emt 0:00:00]} 2. d4 {[%emt 0:00:01]} d5 {[%emt 0:00:00]} 3. e5 {[%emt 0:00:00]} c5 {[%emt 0:00:00]} 4. dxc5 {[%emt 0:00:01]} e6 {[%emt 0:00:02]} 5. Nf3 {[%emt 0:00:01]} Bxc5 {[%emt 0:00:01]} 6. Bd3 {[%emt 0:00:01]} Ne7 {[%emt 0:00:01]} 7. O-O {[%emt 0:00:02]} Ng6 {[%emt 0:00:01]} 8. Nbd2 {[%emt 0:00:02]} Nc6 {[%emt 0:00:02]} 9. Nb3 {[%emt 0:00:01]} Bb6 {[%emt 0:00:01]} 10. Re1 {[%emt 0:00:04]} O-O {[%emt 0:00:02]} 11. c3 {[%emt 0:00:01]} Bc7 {[%emt 0:00:06]} 12. Bxg6 {[%emt 0:00:13]} fxg6 {[%emt 0:00:01]} 13. a4 {[%emt 0:00:01]} Rf5 {[%emt 0:00:14]} 14. Nbd4 {[%emt 0:00:42]} Nxd4 {[%emt 0:00:02]} 15. Qxd4 {[%emt 0:00:12]} Bd7 {[%emt 0:00:13]} 16. Qg4 {[%emt 0:00:09]} Qe8 {[%emt 0:00:27]} 17. a5 {[%emt 0:00:04]} Qe7 {[%emt 0:00:23]} 18. Be3 {[%emt 0:00:38]} Bxe5 {[%emt 0:00:27]} 19. Nxe5 {[%emt 0:00:05]} Rxe5 {[%emt 0:00:01]} 20. Qg3 {[%emt 0:00:09]} Qf6 {[%emt 0:00:43]} 21. Bd4 {[%emt 0:00:26]} Rxe1+ {[%emt 0:00:01]} 22. Rxe1 {[%emt 0:00:00]} Qf7 {[%emt 0:00:03]} 23. Bxa7 {[%emt 0:00:10]} g5 {[%emt 0:00:11]} 24. b4 {[%emt 0:00:06]} Qf4 {[%emt 0:00:09]} 25. Be3 {[%emt 0:00:02]} Qxg3 {[%emt 0:00:03]} 26. hxg3 {[%emt 0:00:00]} h6 {[%emt 0:00:08]} 27. Bd4 {[%emt 0:00:02]} Kf7 {[%emt 0:00:02]} 28. g4 {[%emt 0:00:03]} Bb5 {[%emt 0:00:05]} 29. f3 {[%emt 0:00:02]} Rc8 {[%emt 0:00:06]} 30. Kf2 {[%emt 0:00:01]} Re8 {[%emt 0:00:02]} 31. Re5 {[%emt 0:00:04]} Kg6 {[%emt 0:00:02]} 32. g3 {[%emt 0:00:01]} Kf7 {[%emt 0:00:05]} 33. f4 {[%emt 0:00:01]} gxf4 {[%emt 0:00:03]} 34. gxf4 {[%emt 0:00:01]} Bc6 {[%emt 0:00:04]} 35. Kg3 {[%emt 0:00:01]} Bd7 {[%emt 0:00:06]} 36. f5 {[%emt 0:00:13]} Bc6 {[%emt 0:00:04]} 37. Kf4 {[%emt 0:00:01]} Bd7 {[%emt 0:00:03]} 38. Kg3 {[%emt 0:00:22]} Bc6 {[%emt 0:00:02]} 39. fxe6+ {[%emt 0:00:02]} Rxe6 {[%emt 0:00:01]} 40. Rxe6 {[%emt 0:00:01]} Kxe6 {[%emt 0:00:02]} 41. Bxg7 {[%emt 0:00:00]} Bb5 {[%emt 0:00:09]} 42. Bxh6 {[%emt 0:00:02]} Ke5 {[%emt 0:00:03]} 43. Kf3 {[%emt 0:00:08]} Bd3 {[%emt 0:00:01]} 44. Bg7+ {[%emt 0:00:01]} Ke6 {[%emt 0:00:02]} 45. Ke3 {[%emt 0:00:04]} Bb5 {[%emt 0:00:02]} 46. Kd4 {[%emt 0:00:01]} 1-0

[Event "IMSA Blitz Men 2019"]
[Site "Hengshui"]
[Date "2019.05.17"]
[Round "3.1"]
[White "Rapport, Richard"]
[Black "Bu, Xiangzhi"]
[Result "1-0"]
[ECO "A01"]
[WhiteElo "2736"]
[BlackElo "2729"]
[Annotator "RC"]
[PlyCount "89"]
[EventDate "2019.05.17"]
[EventType "blitz"]
[EventCountry "CHN"]
[SourceTitle "playchess.com"]
[Source "ChessBase"]
[SourceQuality "1"]
[TimeControl "180+2"]

1. b3 {[%emt 0:00:00]} e5 {[%emt 0:00:00]} 2. Bb2 {[%emt 0:00:01]} Nc6 {[%emt 0:00:01]} 3. c4 {[%emt 0:00:00]} g6 {[%emt 0:00:01]} 4. g3 {[%emt 0:00:06]} Bg7 {[%emt 0:00:00]} 5. Bg2 {[%emt 0:00:01]} Nge7 {[%emt 0:00:01]} 6. Nc3 {[%emt 0:00:03]} O-O {[%emt 0:00:02]} 7. d3 {[%emt 0:00:09]} d6 {[%emt 0:00:04]} 8. e3 {[%emt 0:00:02]} Be6 {[%emt 0:00:13]} 9. Nd5 {[%emt 0:00:08]} Qd7 {[%emt 0:00:01]} 10. Qd2 {[%emt 0:00:06]} Nc8 {[%emt 0:00:09]} 11. Ne2 {[%emt 0:00:05]} Nd8 {[%emt 0:00:01]} 12. h4 {[%emt 0:00:03]} h5 {[%emt 0:00:19]} 13. d4 {[%emt 0:00:03]} c6 {[%emt 0:00:24]} 14. Ndc3 {[%emt 0:00:01]} f5 {[%emt 0:00:30]} 15. dxe5 {[%emt 0:00:06]} dxe5 {[%emt 0:00:03]} 16. Qxd7 {[%emt 0:00:02]} Bxd7 {[%emt 0:00:01]} 17. O-O-O {[%emt 0:00:06]} Be6 {[%emt 0:00:07]} 18. Na4 {[%emt 0:00:01]} b6 {[%emt 0:00:24]} 19. Rd2 {[%emt 0:00:04]} Ne7 {[%emt 0:00:13]} 20. Rhd1 {[%emt 0:00:04]} Rc8 {[%emt 0:00:39]} 21. Rd6 {[%emt 0:00:09]} Kf7 {[%emt 0:00:07]} 22. Ng1 {[%emt 0:00:11]} Nb7 {[%emt 0:00:02]} 23. Nf3 {[%emt 0:00:05]} Nxd6 {[%emt 0:00:07]} 24. Ng5+ {[%emt 0:00:00]} Kg8 {[%emt 0:00:05]} 25. Nxe6 {[%emt 0:00:02]} Rfd8 {[%emt 0:00:09]} 26. Nxg7 Nf7 27. Ne6 {[%emt 0:00:10]} Rxd1+ {[%emt 0:00:01]} 28. Kxd1 {[%emt 0:00:01]} e4 {[%emt 0:00:05]} 29. Nf4 {[%emt 0:00:02]} Rd8+ {[%emt 0:00:01]} 30. Kc2 {[%emt 0:00:02]} Rd6 {[%emt 0:00:01]} 31. Bf1 {[%emt 0:00:06]} Nh6 {[%emt 0:00:02]} 32. c5 {[%emt 0:00:01]} bxc5 {[%emt 0:00:01]} 33. Ba3 {[%emt 0:00:04]} Ng4 {[%emt 0:00:03]} 34. Bxc5 Rd7 35. Bc4+ {[%emt 0:00:18]} Nd5 {[%emt 0:00:06]} 36. Nc3 {[%emt 0:00:02]} Nxf2 {[%emt 0:00:02]} 37. Ncxd5 {[%emt 0:00:04]} cxd5 {[%emt 0:00:01]} 38. Nxd5 {[%emt 0:00:03]} Kg7 {[%emt 0:00:02]} 39. Bd4+ {[%emt 0:00:10]} Kh6 {[%emt 0:00:02]} 40. Be5 {[%emt 0:00:01]} Nd3 {[%emt 0:00:01]} 41. Bf4+ {[%emt 0:00:06]} Kg7 {[%emt 0:00:01]} 42. Kc3 {[%emt 0:00:03]} Nc5 {[%emt 0:00:05]} 43. b4 {[%emt 0:00:08]} Ne6 {[%emt 0:00:04]} 44. Be5+ {[%emt 0:00:01]} Kh6 {[%emt 0:00:01]} 45. Nf6 1-0

[Event "IMSA Blitz Men 2019"]
[Site "Hengshui"]
[Date "2019.05.17"]
[Round "3.1"]
[White "Fedoseev, Vladimir"]
[Black "Wang, Hao"]
[Result "0-1"]
[ECO "C65"]
[WhiteElo "2683"]
[BlackElo "2735"]
[Annotator "ChessBase"]
[PlyCount "152"]
[EventDate "2019.05.17"]
[EventType "blitz"]
[EventCountry "CHN"]
[SourceTitle "playchess.com"]
[Source "ChessBase"]
[SourceQuality "1"]
[TimeControl "180+2"]

1. e4 {[%emt 0:00:00]} e5 {[%emt 0:00:00]} 2. Nf3 {[%emt 0:00:00]} Nc6 {[%emt 0:00:00]} 3. Bb5 {[%emt 0:00:00]} Nf6 {[%emt 0:00:02]} 4. d3 {[%emt 0:00:01]} Bc5 {[%emt 0:00:01]} 5. Bxc6 dxc6 {[%emt 0:00:01]} 6. h3 {[%emt 0:00:02]} Bd6 {[%emt 0:00:02]} 7. Nbd2 {[%emt 0:00:03]} O-O {[%emt 0:00:02]} 8. Nc4 {[%emt 0:00:00]} Nd7 {[%emt 0:00:03]} 9. O-O {[%emt 0:00:04]} c5 {[%emt 0:00:05]} 10. c3 {[%emt 0:00:10]} Re8 {[%emt 0:00:02]} 11. Re1 {[%emt 0:00:02]} Nf8 {[%emt 0:00:03]} 12. Nxd6 {[%emt 0:00:34]} Qxd6 {[%emt 0:00:08]} 13. Be3 {[%emt 0:00:07]} b6 {[%emt 0:00:07]} 14. Qc2 {[%emt 0:00:03]} Bb7 {[%emt 0:00:10]} 15. Nh4 {[%emt 0:00:11]} Rad8 {[%emt 0:00:02]} 16. Rad1 {[%emt 0:00:02]} Bc8 {[%emt 0:00:21]} 17. b4 {[%emt 0:00:48]} cxb4 {[%emt 0:00:10]} 18. cxb4 {[%emt 0:00:01]} Qxb4 {[%emt 0:00:38]} 19. Qxc7 {[%emt 0:00:22]} Qa4 {[%emt 0:00:28]} 20. Nf3 {[%emt 0:00:06]} f6 {[%emt 0:00:03]} 21. Rd2 {[%emt 0:00:15]} Ne6 {[%emt 0:00:09]} 22. Qc4 {[%emt 0:00:10]} Qxc4 {[%emt 0:00:05]} 23. dxc4 {[%emt 0:00:01]} Bb7 {[%emt 0:00:09]} 24. Rxd8 {[%emt 0:00:02]} Rxd8 {[%emt 0:00:01]} 25. Nd2 {[%emt 0:00:01]} Rd3 {[%emt 0:00:06]} 26. Rc1 {[%emt 0:00:09]} Ra3 {[%emt 0:00:04]} 27. Rc2 {[%emt 0:00:09]} Bc6 {[%emt 0:00:06]} 28. Kh2 {[%emt 0:00:15]} Kf7 {[%emt 0:00:07]} 29. Kg1 {[%emt 0:00:07]} Ke8 {[%emt 0:00:01]} 30. Kf1 {[%emt 0:00:03]} Kd7 {[%emt 0:00:05]} 31. Ke2 {[%emt 0:00:08]} Kd6 {[%emt 0:00:16]} 32. c5+ {[%emt 0:00:02]} Kd7 {[%emt 0:00:05]} 33. cxb6 {[%emt 0:00:01]} axb6 {[%emt 0:00:03]} 34. Nc4 {[%emt 0:00:04]} Bb5 {[%emt 0:00:01]} 35. Ke1 {[%emt 0:00:03]} Bxc4 {[%emt 0:00:03]} 36. Rxc4 {[%emt 0:00:01]} b5 {[%emt 0:00:03]} 37. Rc2 {[%emt 0:00:03]} Ra4 {[%emt 0:00:03]} 38. f3 {[%emt 0:00:01]} Kd6 {[%emt 0:00:03]} 39. Ke2 {[%emt 0:00:01]} Ra3 {[%emt 0:00:03]} 40. Rd2+ {[%emt 0:00:01]} Kc6 {[%emt 0:00:01]} 41. Rc2+ {[%emt 0:00:01]} Kd6 {[%emt 0:00:02]} 42. Rd2+ {[%emt 0:00:00]} Ke7 {[%emt 0:00:05]} 43. Rb2 {[%emt 0:00:02]} Kf7 {[%emt 0:00:03]} 44. Kf2 {[%emt 0:00:01]} Ke7 {[%emt 0:00:01]} 45. Bd2 {[%emt 0:00:02]} Kd7 {[%emt 0:00:03]} 46. Bb4 {[%emt 0:00:01]} Rd3 {[%emt 0:00:03]} 47. Ba5 {[%emt 0:00:03]} Nd4 {[%emt 0:00:02]} 48. Bb4 {[%emt 0:00:07]} Ke6 {[%emt 0:00:05]} 49. Bf8 {[%emt 0:00:04]} g6 {[%emt 0:00:02]} 50. Bc5 {[%emt 0:00:01]} Rc3 {[%emt 0:00:06]} 51. Bxd4 {[%emt 0:00:02]} exd4 {[%emt 0:00:01]} 52. Rxb5 {[%emt 0:00:01]} Rc2+ {[%emt 0:00:02]} 53. Kg3 {[%emt 0:00:02]} Rxa2 {[%emt 0:00:02]} 54. Rd5 {[%emt 0:00:00]} Rd2 {[%emt 0:00:02]} 55. h4 {[%emt 0:00:05]} h5 {[%emt 0:00:02]} 56. Rd8 {[%emt 0:00:02]} d3 {[%emt 0:00:02]} 57. Kf4 {[%emt 0:00:03]} Rxg2 {[%emt 0:00:04]} 58. Rxd3 {[%emt 0:00:01]} g5+ {[%emt 0:00:03]} 59. hxg5 {[%emt 0:00:01]} fxg5+ {[%emt 0:00:01]} 60. Ke3 {[%emt 0:00:00]} h4 {[%emt 0:00:01]} 61. Rd8 {[%emt 0:00:01]} h3 {[%emt 0:00:01]} 62. Rh8 {[%emt 0:00:02]} h2 {[%emt 0:00:02]} 63. Rh6+ {[%emt 0:00:02]} Ke5 {[%emt 0:00:02]} 64. Rh8 {[%emt 0:00:06]} Ra2 {[%emt 0:00:03]} 65. Rh6 {[%emt 0:00:02]} Rb2 {[%emt 0:00:04]} 66. Rh8 {[%emt 0:00:02]} Kd6 {[%emt 0:00:02]} 67. Rh5 {[%emt 0:00:02]} Ke6 {[%emt 0:00:02]} 68. Rh6+ {[%emt 0:00:02]} Kf7 {[%emt 0:00:01]} 69. e5 {[%emt 0:00:02]} Kg7 {[%emt 0:00:01]} 70. Rh3 {[%emt 0:00:03]} Kg6 {[%emt 0:00:01]} 71. Ke4 {[%emt 0:00:01]} Re2+ {[%emt 0:00:02]} 72. Kd3 {[%emt 0:00:04]} Ra2 {[%emt 0:00:03]} 73. Ke4 {[%emt 0:00:00]} Ra4+ {[%emt 0:00:03]} 74. Ke3 {[%emt 0:00:02]} Ra3+ {[%emt 0:00:02]} 75. Ke4 {[%emt 0:00:01]} Ra4+ {[%emt 0:00:01]} 76. Ke3 {[%emt 0:00:01]} Rh4 {[%emt 0:00:01]} 0-1

[Event "IMSA Blitz Men 2019"]
[Site "Hengshui"]
[Date "2019.05.17"]
[Round "3.2"]
[White "Jones, Gawain C B"]
[Black "Korobov, Anton"]
[Result "0-1"]
[ECO "B52"]
[WhiteElo "2702"]
[BlackElo "2687"]
[Annotator "ChessBase"]
[PlyCount "138"]
[EventDate "2019.05.17"]
[EventType "blitz"]
[EventCountry "CHN"]
[SourceTitle "playchess.com"]
[Source "ChessBase"]
[SourceQuality "1"]
[TimeControl "180+2"]

1. e4 {[%emt 0:00:00]} c5 {[%emt 0:00:00]} 2. Nf3 {[%emt 0:00:01]} d6 {[%emt 0:00:00]} 3. Bb5+ {[%emt 0:00:00]} Bd7 {[%emt 0:00:01]} 4. Bxd7+ {[%emt 0:00:03]} Nxd7 {[%emt 0:00:02]} 5. O-O {[%emt 0:00:03]} Ngf6 {[%emt 0:00:01]} 6. Qe2 {[%emt 0:00:01]} Qc7 {[%emt 0:00:01]} 7. b3 {[%emt 0:00:06]} e5 {[%emt 0:00:20]} 8. d3 {[%emt 0:00:14]} Be7 {[%emt 0:00:09]} 9. Bg5 {[%emt 0:00:08]} h6 {[%emt 0:00:10]} 10. Bxf6 {[%emt 0:00:02]} Nxf6 {[%emt 0:00:02]} 11. c4 {[%emt 0:00:03]} O-O {[%emt 0:00:08]} 12. Nc3 {[%emt 0:00:01]} Qd7 {[%emt 0:00:04]} 13. Ne1 {[%emt 0:00:08]} Bd8 {[%emt 0:00:03]} 14. Nc2 {[%emt 0:00:07]} Ba5 {[%emt 0:00:01]} 15. Nd1 {[%emt 0:00:07]} b5 {[%emt 0:00:13]} 16. Nce3 {[%emt 0:00:01]} g6 {[%emt 0:00:05]} 17. f4 {[%emt 0:00:10]} exf4 {[%emt 0:00:08]} 18. Rxf4 {[%emt 0:00:02]} Qe6 {[%emt 0:00:17]} 19. Qb2 {[%emt 0:00:15]} Nd7 {[%emt 0:00:07]} 20. Ng4 {[%emt 0:00:13]} Ne5 {[%emt 0:00:36]} 21. Nxh6+ {[%emt 0:00:39]} Kh7 {[%emt 0:00:10]} 22. Rh4 {[%emt 0:00:04]} Bd8 {[%emt 0:00:13]} 23. Rh3 {[%emt 0:00:05]} Kg7 {[%emt 0:00:03]} 24. Ne3 {[%emt 0:00:08]} Bf6 {[%emt 0:00:03]} 25. Nef5+ {[%emt 0:00:41]} gxf5 {[%emt 0:00:03]} 26. Qf2 {[%emt 0:00:10]} Rh8 {[%emt 0:00:06]} 27. Nxf5+ {[%emt 0:00:13]} Kf8 {[%emt 0:00:01]} 28. Rxh8+ {[%emt 0:00:04]} Bxh8 {[%emt 0:00:00]} 29. Rf1 {[%emt 0:00:05]} bxc4 {[%emt 0:00:08]} 30. dxc4 {[%emt 0:00:01]} Ng6 {[%emt 0:00:04]} 31. Qd2 {[%emt 0:00:02]} Rd8 {[%emt 0:00:10]} 32. Qg5 {[%emt 0:00:01]} Bf6 {[%emt 0:00:10]} 33. Qh6+ {[%emt 0:00:00]} Kg8 {[%emt 0:00:03]} 34. Qe3 {[%emt 0:00:01]} Re8 {[%emt 0:00:06]} 35. Qg3 {[%emt 0:00:05]} Qxe4 {[%emt 0:00:05]} 36. Nxd6 {[%emt 0:00:01]} Qd4+ {[%emt 0:00:02]} 37. Kh1 {[%emt 0:00:01]} Re3 {[%emt 0:00:05]} 38. Nf5 {[%emt 0:00:02]} Rxg3 {[%emt 0:00:04]} 39. Nxd4 {[%emt 0:00:01]} Rd3 {[%emt 0:00:01]} 40. Nc6 {[%emt 0:00:03]} Bd4 {[%emt 0:00:03]} 41. Nxa7 {[%emt 0:00:01]} Rd2 {[%emt 0:00:01]} 42. a4 {[%emt 0:00:02]} Nf4 {[%emt 0:00:02]} 43. Nc6 {[%emt 0:00:03]} Nd3 {[%emt 0:00:01]} 44. Nxd4 {[%emt 0:00:05]} cxd4 {[%emt 0:00:02]} 45. h4 {[%emt 0:00:01]} Nb4 {[%emt 0:00:01]} 46. Kg1 {[%emt 0:00:03]} d3 {[%emt 0:00:00]} 47. Rf6 {[%emt 0:00:03]} Rb2 {[%emt 0:00:05]} 48. Rd6 {[%emt 0:00:01]} Rxb3 {[%emt 0:00:02]} 49. Kf2 {[%emt 0:00:02]} Rc3 {[%emt 0:00:01]} 50. a5 {[%emt 0:00:02]} Rxc4 {[%emt 0:00:02]} 51. a6 {[%emt 0:00:00]} Rc2+ {[%emt 0:00:01]} 52. Ke3 {[%emt 0:00:02]} Re2+ {[%emt 0:00:01]} 53. Kf3 {[%emt 0:00:00]} Ra2 {[%emt 0:00:01]} 54. Ke3 {[%emt 0:00:01]} Rxa6 {[%emt 0:00:02]} 55. Rxa6 {[%emt 0:00:02]} Nxa6 {[%emt 0:00:01]} 56. Kxd3 {[%emt 0:00:01]} Nc5+ {[%emt 0:00:02]} 57. Kd4 {[%emt 0:00:01]} Ne6+ {[%emt 0:00:00]} 58. Ke5 {[%emt 0:00:00]} Kg7 {[%emt 0:00:01]} 59. Kf5 {[%emt 0:00:03]} Nd4+ {[%emt 0:00:01]} 60. Ke4 {[%emt 0:00:02]} Ne6 {[%emt 0:00:03]} 61. Kf5 {[%emt 0:00:01]} Nc7 {[%emt 0:00:02]} 62. h5 {[%emt 0:00:05]} Nd5 {[%emt 0:00:03]} 63. g3 {[%emt 0:00:03]} Ne7+ {[%emt 0:00:03]} 64. Ke5 {[%emt 0:00:01]} Ng8 {[%emt 0:00:02]} 65. Kf5 {[%emt 0:00:01]} Kh6 {[%emt 0:00:02]} 66. g4 {[%emt 0:00:01]} f6 {[%emt 0:00:01]} 67. Kf4 {[%emt 0:00:09]} Ne7 {[%emt 0:00:01]} 68. Kg3 {[%emt 0:00:03]} Kg5 {[%emt 0:00:01]} 69. Kf3 Ng8 0-1

[Event "IMSA Blitz Men 2019"]
[Site "Hengshui"]
[Date "2019.05.17"]
[Round "4.1"]
[White "Wang, Hao"]
[Black "Gelfand, Boris"]
[Result "1/2-1/2"]
[ECO "B30"]
[WhiteElo "2735"]
[BlackElo "2676"]
[Annotator "ChessBase"]
[PlyCount "126"]
[EventDate "2019.05.17"]
[EventType "blitz"]
[EventCountry "CHN"]
[SourceTitle "playchess.com"]
[Source "ChessBase"]
[SourceQuality "1"]
[TimeControl "180+2"]

1. e4 {[%emt 0:00:00]} c5 {[%emt 0:00:00]} 2. Nf3 {[%emt 0:00:00]} Nc6 {[%emt 0:00:01]} 3. Bb5 {[%emt 0:00:01]} e6 {[%emt 0:00:00]} 4. O-O Nge7 5. c3 {[%emt 0:00:05]} a6 {[%emt 0:00:03]} 6. Ba4 {[%emt 0:00:01]} b5 {[%emt 0:00:01]} 7. Bc2 {[%emt 0:00:01]} Bb7 {[%emt 0:00:00]} 8. Re1 {[%emt 0:00:02]} c4 {[%emt 0:00:05]} 9. a4 {[%emt 0:00:09]} Ng6 {[%emt 0:00:01]} 10. axb5 {[%emt 0:00:17]} axb5 {[%emt 0:00:00]} 11. Rxa8 {[%emt 0:00:01]} Qxa8 {[%emt 0:00:03]} 12. d4 {[%emt 0:00:02]} cxd3 {[%emt 0:00:01]} 13. Bxd3 {[%emt 0:00:03]} b4 {[%emt 0:00:04]} 14. Bb5 {[%emt 0:00:26]} Be7 {[%emt 0:00:14]} 15. cxb4 {[%emt 0:00:05]} O-O {[%emt 0:00:26]} 16. Nc3 {[%emt 0:00:06]} Nxb4 {[%emt 0:00:10]} 17. Bxd7 {[%emt 0:00:28]} Rd8 {[%emt 0:00:15]} 18. Qa4 {[%emt 0:00:06]} Nd3 {[%emt 0:00:41]} 19. Rd1 {[%emt 0:00:25]} Nxc1 {[%emt 0:00:12]} 20. Rxc1 {[%emt 0:00:02]} Nf4 {[%emt 0:00:00]} 21. Qxa8 {[%emt 0:00:07]} Bxa8 {[%emt 0:00:02]} 22. Bb5 {[%emt 0:00:01]} Rb8 {[%emt 0:00:15]} 23. g3 {[%emt 0:00:40]} Rxb5 {[%emt 0:00:16]} 24. Ra1 {[%emt 0:00:01]} Ne2+ {[%emt 0:00:16]} 25. Nxe2 {[%emt 0:00:08]} Bb7 {[%emt 0:00:08]} 26. Ra2 {[%emt 0:00:13]} h6 {[%emt 0:00:06]} 27. Nc3 {[%emt 0:00:01]} Rb4 {[%emt 0:00:01]} 28. Kf1 {[%emt 0:00:06]} Bf6 {[%emt 0:00:08]} 29. e5 {[%emt 0:00:02]} Bxf3 {[%emt 0:00:04]} 30. exf6 {[%emt 0:00:02]} gxf6 {[%emt 0:00:01]} 31. Ke1 {[%emt 0:00:02]} Rd4 {[%emt 0:00:06]} 32. Ra4 {[%emt 0:00:05]} Rd3 {[%emt 0:00:03]} 33. Ra1 {[%emt 0:00:05]} f5 {[%emt 0:00:04]} 34. Rc1 {[%emt 0:00:02]} Rd4 {[%emt 0:00:01]} 35. Rc2 {[%emt 0:00:06]} Kg7 {[%emt 0:00:04]} 36. Rd2 {[%emt 0:00:01]} Rb4 {[%emt 0:00:00]} 37. Rd3 {[%emt 0:00:03]} Bc6 {[%emt 0:00:04]} 38. Nd1 {[%emt 0:00:02]} Kf6 {[%emt 0:00:03]} 39. Kd2 {[%emt 0:00:02]} Ba4 {[%emt 0:00:02]} 40. Kc1 {[%emt 0:00:03]} h5 {[%emt 0:00:03]} 41. Nc3 {[%emt 0:00:02]} Bc6 {[%emt 0:00:03]} 42. Rd6 {[%emt 0:00:02]} Rc4 {[%emt 0:00:02]} 43. Kc2 {[%emt 0:00:03]} Ke7 {[%emt 0:00:01]} 44. Rd2 {[%emt 0:00:03]} Rb4 {[%emt 0:00:05]} 45. Rd1 {[%emt 0:00:02]} h4 {[%emt 0:00:02]} 46. b3 {[%emt 0:00:02]} hxg3 {[%emt 0:00:04]} 47. hxg3 {[%emt 0:00:01]} f4 {[%emt 0:00:00]} 48. gxf4 {[%emt 0:00:03]} Rxf4 {[%emt 0:00:01]} 49. Rd2 {[%emt 0:00:01]} e5 {[%emt 0:00:02]} 50. Kb2 {[%emt 0:00:02]} Ke6 {[%emt 0:00:01]} 51. Ka3 {[%emt 0:00:01]} Rf3 {[%emt 0:00:02]} 52. Kb4 {[%emt 0:00:02]} f5 {[%emt 0:00:04]} 53. Na4 {[%emt 0:00:01]} f4 {[%emt 0:00:04]} 54. Kc5 {[%emt 0:00:03]} Be8 {[%emt 0:00:04]} 55. Kc4 {[%emt 0:00:03]} Kf5 {[%emt 0:00:02]} 56. Nc5 {[%emt 0:00:02]} Bf7+ {[%emt 0:00:01]} 57. Kb4 {[%emt 0:00:02]} e4 {[%emt 0:00:07]} 58. Re2 {[%emt 0:00:05]} e3 {[%emt 0:00:03]} 59. fxe3 {[%emt 0:00:02]} Rxe3 60. Rxe3 {[%emt 0:00:02]} fxe3 {[%emt 0:00:01]} 61. Kc3 {[%emt 0:00:01]} e2 {[%emt 0:00:02]} 62. Kd2 {[%emt 0:00:01]} Ke5 {[%emt 0:00:02]} 63. Kxe2 {[%emt 0:00:02]} Bxb3 {[%emt 0:00:02]} 1/2-1/2

[Event "IMSA Blitz Men 2019"]
[Site "Hengshui"]
[Date "2019.05.17"]
[Round "4.1"]
[White "Vidit, Santosh Gujrathi"]
[Black "Ponomariov, Ruslan"]
[Result "1-0"]
[ECO "D71"]
[WhiteElo "2707"]
[BlackElo "2675"]
[Annotator "RC"]
[PlyCount "51"]
[EventDate "2019.05.17"]
[EventType "blitz"]
[EventCountry "CHN"]
[SourceTitle "playchess.com"]
[Source "ChessBase"]
[SourceQuality "1"]
[TimeControl "180+2"]

1. d4 {[%emt 0:00:00]} Nf6 {[%emt 0:00:00]} 2. c4 {[%emt 0:00:00]} g6 {[%emt 0:00:00]} 3. g3 {[%emt 0:00:01]} Bg7 {[%emt 0:00:00]} 4. Bg2 {[%emt 0:00:01]} O-O {[%emt 0:00:03]} 5. Nc3 {[%emt 0:00:01]} c5 {[%emt 0:00:02]} 6. dxc5 {[%emt 0:00:01]} Qa5 {[%emt 0:00:10]} 7. Qa4 {[%emt 0:00:02]} Qxc5 {[%emt 0:00:09]} 8. Be3 {[%emt 0:00:01]} Qc7 {[%emt 0:00:18]} 9. Nh3 {[%emt 0:00:01]} Ng4 {[%emt 0:00:34]} 10. Bd2 {[%emt 0:00:16]} Nc6 {[%emt 0:00:14]} 11. O-O {[%emt 0:00:16]} d6 {[%emt 0:00:01]} 12. Nf4 {[%emt 0:00:08]} Bd7 {[%emt 0:00:01]} 13. Nfd5 {[%emt 0:00:07]} Qd8 {[%emt 0:00:01]} 14. Qa3 {[%emt 0:00:07]} a6 {[%emt 0:00:34]} 15. c5 {[%emt 0:00:51]} dxc5 {[%emt 0:00:09]} 16. Qxc5 {[%emt 0:00:04]} Bd4 {[%emt 0:00:03]} 17. Qa3 {[%emt 0:00:16]} e6 {[%emt 0:00:02]} 18. Nf4 {[%emt 0:00:14]} Qb6 {[%emt 0:00:15]} 19. e3 {[%emt 0:00:07]} Bc5 {[%emt 0:00:09]} 20. Na4 {[%emt 0:00:03]} Bxa3 {[%emt 0:00:11]} 21. Nxb6 {[%emt 0:00:01]} Bxb2 {[%emt 0:00:16]} 22. Rab1 {[%emt 0:00:02]} Bg7 {[%emt 0:00:06]} 23. Nxd7 {[%emt 0:00:13]} Rfd8 {[%emt 0:00:02]} 24. Rxb7 {[%emt 0:00:03]} Rac8 {[%emt 0:00:01]} 25. Nb6 {[%emt 0:00:07]} Rb8 {[%emt 0:00:03]} 26. Rxb8 {[%emt 0:00:05]} 1-0

[Event "IMSA Blitz Men 2019"]
[Site "Hengshui"]
[Date "2019.05.17"]
[Round "4.1"]
[White "Jones, Gawain C B"]
[Black "Fedoseev, Vladimir"]
[Result "0-1"]
[ECO "B31"]
[WhiteElo "2702"]
[BlackElo "2683"]
[Annotator "RC"]
[PlyCount "72"]
[EventDate "2019.05.17"]
[EventType "blitz"]
[EventCountry "CHN"]
[SourceTitle "playchess.com"]
[Source "ChessBase"]
[SourceQuality "1"]
[TimeControl "180+2"]

1. e4 {[%emt 0:00:00]} c5 {[%emt 0:00:00]} 2. Nf3 {[%emt 0:00:00]} Nc6 {[%emt 0:00:02]} 3. Bb5 {[%emt 0:00:00]} g6 {[%emt 0:00:02]} 4. O-O {[%emt 0:00:02]} Bg7 {[%emt 0:00:01]} 5. Re1 {[%emt 0:00:00]} Nf6 {[%emt 0:00:07]} 6. e5 {[%emt 0:00:02]} Nd5 {[%emt 0:00:02]} 7. Nc3 {[%emt 0:00:01]} Nc7 {[%emt 0:00:01]} 8. Bxc6 {[%emt 0:00:01]} dxc6 {[%emt 0:00:02]} 9. Ne4 {[%emt 0:00:02]} b6 {[%emt 0:00:13]} 10. d3 {[%emt 0:00:01]} O-O {[%emt 0:00:08]} 11. h3 {[%emt 0:00:33]} Ne6 {[%emt 0:00:07]} 12. b3 {[%emt 0:00:10]} f5 {[%emt 0:00:30]} 13. Neg5 {[%emt 0:00:31]} Nc7 {[%emt 0:00:09]} 14. h4 {[%emt 0:00:07]} f4 {[%emt 0:00:06]} 15. Bb2 {[%emt 0:00:21]} h6 {[%emt 0:00:04]} 16. Ne4 {[%emt 0:00:03]} Bg4 {[%emt 0:00:06]} 17. Qe2 {[%emt 0:00:11]} Ne6 {[%emt 0:00:05]} 18. Ned2 {[%emt 0:00:02]} g5 {[%emt 0:00:07]} 19. Qe4 {[%emt 0:00:07]} Qe8 {[%emt 0:00:01]} 20. hxg5 {[%emt 0:00:04]} hxg5 {[%emt 0:00:02]} 21. Nh2 {[%emt 0:00:01]} Bf5 {[%emt 0:00:02]} 22. Qf3 {[%emt 0:00:08]} Rc8 {[%emt 0:00:11]} 23. Ne4 {[%emt 0:00:06]} Qg6 {[%emt 0:00:03]} 24. Ng4 {[%emt 0:00:01]} Kf7 {[%emt 0:00:07]} 25. Qe2 {[%emt 0:00:21]} Rh8 {[%emt 0:00:06]} 26. f3 {[%emt 0:00:01]} Qh5 {[%emt 0:00:28]} 27. Nef2 {[%emt 0:00:01]} Qh4 {[%emt 0:00:05]} 28. a4 {[%emt 0:00:33]} Rh5 {[%emt 0:00:03]} 29. a5 {[%emt 0:00:04]} b5 {[%emt 0:00:10]} 30. Qd2 {[%emt 0:00:14]} Rch8 {[%emt 0:00:03]} 31. Kf1 {[%emt 0:00:01]} Qg3 {[%emt 0:00:05]} 32. Ke2 {[%emt 0:00:01]} Bxg4 {[%emt 0:00:07]} 33. fxg4 {[%emt 0:00:03]} Rh2 {[%emt 0:00:01]} 34. Rg1 {[%emt 0:00:05]} Rxg2 {[%emt 0:00:01]} 35. Rxg2 {[%emt 0:00:01]} f3+ {[%emt 0:00:03]} 36. Kd1 {[%emt 0:00:09]} fxg2 {[%emt 0:00:01]} 0-1